bitfinex/quotes_ETHUSD_20251024
["timestamp","ask_amount","ask_price","bid_price","bid_amount"]
[1761295541942,0.2315,3961.9,3961.3,3.336]
[1761295543454,0.6642,3961.9,3961.3,3.336]
[1761295543771,0.3,3962.0,3961.3,3.336]
[1761295543970,0.3,3962.0,3961.3,5.8603969]
[1761295544148,0.3,3962.0,3961.4,0.0252436]
[1761295544349,0.3,3962.0,3961.9,2.52404149]
[1761295544568,0.3,3962.0,3961.9,5.85604149]
[1761295544805,0.3,3962.0,3961.9,6.29254149]
[1761295544984,0.3,3962.0,3961.9,6.79942149]
[1761295546294,1e-08,3962.0,3961.9,7.45657102]
[1761295546673,1e-08,3962.0,3961.9,7.85567407]
[1761295547002,1e-08,3962.0,3961.9,7.45657102]
[1761295547197,1e-08,3962.0,3961.9,6.79942149]
[1761295547403,1e-08,3962.0,3961.9,3.46742149]
[1761295547588,1e-08,3962.0,3961.9,6.79842149]
[1761295548301,1e-08,3962.0,3961.9,3.46742149]
[1761295548501,1e-08,3962.0,3961.9,6.79742149]
[1761295549606,1e-08,3962.0,3961.9,3.46742149]
[1761295549804,1e-08,3962.0,3961.0,2.52461499]
[1761295550001,1e-08,3962.0,3961.1,3.328]
[1761295550168,1e-08,3962.0,3960.9,0.4365]
[1761295550169,0.2315,3961.9,3961.5,2.52424976]
[1761295550370,0.2315,3961.9,3961.6,3.328]
[1761295550729,0.43270001,3962.0,3961.9,2.52404149]
[1761295550730,1e-08,3962.0,3961.9,2.52404149]
[1761295550904,1e-08,3962.0,3961.9,6.37192149]
[1761295551406,1e-08,3962.0,3961.9,6.80842149]
[1761295551581,1e-08,3962.0,3961.9,6.37192149]
[1761295552327,1e-08,3962.0,3961.9,6.80842149]
[1761295553624,1e-08,3962.0,3961.9,7.75432053]
[1761295554127,1e-08,3962.0,3961.9,7.31782053]
[1761295554295,1e-08,3962.0,3961.9,6.80842149]
[1761295554492,1e-08,3962.0,3961.9,6.37192149]
[1761295555114,1e-08,3962.0,3961.9,6.37392149]
[1761295555395,0.00100001,3962.0,3961.9,15.44592461]
[1761295555925,0.00100001,3962.0,3961.9,3.46942149]
[1761295556107,0.00100001,3962.0,3961.9,6.80742149]
[1761295556425,0.00100001,3962.0,3961.9,7.74058053]
[1761295556923,0.00100001,3962.0,3961.9,6.36892149]
[1761295560112,0.00020001,3962.0,3961.9,6.36892149]
[1761295560313,0.00020001,3962.0,3961.9,6.81412149]
[1761295560738,0.00020001,3962.0,3961.9,6.36892149]
[1761295561455,0.00020001,3962.0,3961.9,3.338]
[1761295561627,0.46900001,3962.0,3961.9,0.002]
[1761295561955,0.46900001,3962.0,3961.2,2.52447184]
[1761295561956,3.29226461,3962.0,3961.2,3.33]
[1761295562113,0.2227,3961.3,3961.2,3.33]
[1761295562651,0.6915,3961.3,3960.1,0.66164423]
[1761295562808,0.6915,3961.3,3960.2,3.329]
[1761295563012,0.00020001,3962.0,3960.2,0.3329]
[1761295563213,0.00020001,3962.0,3961.9,2.52404149]
[1761295563414,0.00020001,3962.0,3961.9,4.02812982]
[1761295563734,0.46900001,3962.0,3961.9,3.359]
[1761295564445,0.46900001,3962.0,3961.9,4.02812982]
[1761295564648,0.00020001,3962.0,3961.9,3.19317131]
[1761295564834,0.46900001,3962.0,3961.9,0.66912982]
[1761295565221,0.59540001,3962.0,3961.8,0.90203955]
[1761295565516,0.59540001,3962.0,3961.6,0.67158427]
[1761295565517,0.2227,3961.9,3961.6,0.67158427]
[1761295565719,2.65056891,3961.7,3961.5,0.67158427]
[1761295565944,0.80300689,3961.6,3961.2,0.67158427]
[1761295566116,0.1264,3961.3,3961.0,3.358]
[1761295566318,0.1264,3961.1,3961.0,5.88260284]
[1761295566654,0.00020001,3962.0,3961.9,2.52404149]
[1761295567619,0.00020001,3962.0,3961.9,3.86897123]
[1761295567850,0.00020001,3962.0,3961.8,1.34492974]
[1761295568149,0.2227,3961.9,3961.7,4.25724307]
[1761295568646,0.4688,3961.8,3961.7,6.78141198]
[1761295569076,2.75494367,3962.9,3961.7,6.78141198]
[1761295569077,0.2227,3965.0,3962.8,0.05]
[1761295569218,0.2227,3964.5,3963.5,3.02990258]
[1761295569540,0.2227,3964.5,3963.5,6.41590258]
[1761295569721,0.2227,3964.5,3963.5,6.74880258]
[1761295570153,0.2227,3964.5,3963.5,2.85592258]
[1761295570322,0.2227,3963.9,3963.5,2.52302258]
[1761295570521,1.3688,3963.6,3963.5,3.384]
[1761295570773,1.3688,3963.6,3963.2,2.52321356]
[1761295571054,1.3688,3963.6,3963.1,3.385]
[1761295571055,0.4688,3963.5,3963.1,3.385]
[1761295572558,0.85796461,3963.5,3963.1,3.385]
[1761295572766,0.4688,3963.5,3963.1,3.385]
[1761295573051,0.9,3963.6,3962.5,0.89532672]
[1761295573052,2.52346707,3962.9,3962.5,0.89532672]
[1761295573272,0.2227,3962.6,3961.9,0.89532672]
[1761295573448,0.2227,3962.6,3961.8,3.382]
[1761295573624,0.2227,3961.9,3961.8,5.9061052]
[1761295574422,0.6915,3961.9,3961.8,3.382]
[1761295576447,0.8179,3961.9,3961.8,3.382]
[1761295577476,0.6915,3962.6,3962.0,2.52391572]
[1761295577874,0.6915,3962.6,3961.8,2.5241052]
[1761295577875,0.6915,3962.6,3962.1,5.89991367]
[1761295578089,0.6915,3962.6,3962.1,3.376]
[1761295578248,0.4688,3962.5,3962.1,3.376]
[1761295578448,0.4688,3962.5,3962.1,5.89985718]
[1761295579151,3.21714518,3962.5,3962.1,3.376]
[1761295579352,0.4688,3962.5,3962.1,3.376]
[1761295579558,0.4688,3962.5,3961.8,2.52409511]
[1761295579559,0.4688,3962.4,3961.8,3.374]
[1761295579759,0.2227,3961.9,3961.8,3.374]
[1761295579964,0.4688,3962.4,3961.8,3.374]
[1761295580187,0.4688,3962.4,3961.9,2.5240248]
[1761295580482,0.4688,3962.4,3961.8,5.89809045]
[1761295581056,0.4688,3962.4,3961.9,2.52402781]
[1761295581368,0.4688,3962.4,3961.8,3.374]
[1761295581878,0.2227,3961.9,3961.8,5.8981052]
[1761295582129,0.2227,3961.9,3961.8,3.374]
[1761295582288,0.90781157,3964.7,3963.5,3.02990258]
[1761295582490,0.2227,3964.5,3963.5,6.43190258]
[1761295582686,0.2227,3964.5,3963.5,7.50109368]
[1761295583072,0.2227,3964.5,3963.5,6.15855564]
[1761295584254,0.9002,3963.6,3963.5,7.8956923]
[1761295584597,2.52182235,3965.4,3963.5,7.8956923]
[1761295584598,0.2227,3965.9,3963.6,0.50688]
[1761295584750,0.2227,3965.9,3965.3,2.52182708]
[1761295584955,0.2227,3965.9,3965.4,3.405]
[1761295585182,0.2227,3965.9,3965.5,3.405]
[1761295585987,0.51937058,3965.9,3964.3,0.89389788]
[1761295586186,2.52184651,3965.4,3964.4,3.049]
[1761295586399,0.2227,3964.5,3963.5,0.89389788]
[1761295586608,0.2227,3964.5,3963.6,3.63676983]
[1761295586816,0.2227,3964.5,3964.0,2.52265129]
[1761295587097,0.2227,3964.5,3963.3,0.4452]
[1761295587098,0.2227,3964.5,3963.2,0.89389788]
[1761295587313,0.2227,3964.5,3962.5,0.4452]
[1761295587314,0.2227,3964.5,3963.8,2.52281243]
[1761295587495,0.65271013,3964.5,3963.9,5.92576379]
[1761295587693,0.2227,3964.5,3963.9,3.403]
[1761295587896,0.1264,3964.0,3963.9,3.403]
[1761295589078,3.19864767,3966.7,3963.9,3.403]
[1761295589079,0.2227,3967.0,3963.9,4.49269721]
[1761295589313,2.52202365,3965.1,3964.0,3.425]
[1761295589512,2.89344337,3966.0,3964.2,2.52257589]
[1761295589711,1.5552,3965.6,3964.0,3.425]
[1761295589889,0.2142,3964.3,3964.0,3.425]
[1761295590402,0.2142,3964.3,3964.0,5.94768975]
[1761295590980,1.5552,3965.6,3964.0,3.425]
[1761295591180,0.33388434,3965.8,3964.1,0.1441]
[1761295591482,2.52175823,3965.5,3964.1,0.1441]
[1761295591716,1.7779,3965.9,3964.1,0.1441]
[1761295592086,2.52163778,3965.7,3964.8,2.52215852]
[1761295592305,2.52169273,3965.6,3964.8,5.94418819]
[1761295592608,2.52169273,3965.6,3963.8,2.52277935]
[1761295592609,0.2142,3964.9,3963.3,0.2192]
[1761295592794,0.2142,3964.9,3964.1,2.52258953]
[1761295592995,0.2142,3964.9,3963.3,0.2192]
[1761295592996,2.52219894,3964.8,3964.2,3.42]
[1761295593204,0.2142,3964.9,3963.8,3.419]
[1761295593205,2.52230614,3964.7,3963.8,3.419]
[1761295593392,2.52230614,3964.7,3963.8,5.94181755]
[1761295593597,3.04819045,3964.6,3963.8,3.419]
[1761295593817,0.52586473,3964.6,3963.8,5.94181616]
[1761295594117,0.52586473,3964.6,3963.9,2.52274948]
[1761295594625,0.52586473,3964.6,3964.0,2.52267617]
[1761295594819,3.04819364,3964.6,3963.8,3.419]
[1761295594987,0.55703898,3964.5,3963.9,2.52276798]
[1761295595180,0.2142,3964.9,3963.9,2.52276798]
[1761295595384,2.73636291,3964.9,3963.8,3.419]
[1761295595580,2.5222636,3964.7,3963.9,2.52275057]
[1761295595979,2.5222636,3964.7,3963.8,3.419]
[1761295596218,2.5222636,3964.7,3963.9,2.52275089]
[1761295596418,3.04819034,3964.6,3963.8,5.94181647]
[1761295596585,0.2142,3963.9,3963.8,3.419]
[1761295596915,0.2142,3963.9,3962.5,0.4411]
[1761295596916,0.2142,3963.9,3962.6,2.52359561]
[1761295597083,0.2142,3963.9,3962.7,5.93548665]
[1761295597084,2.52294566,3963.7,3962.7,5.93548665]
[1761295597281,2.52298017,3963.6,3962.8,3.412]
[1761295597521,0.25229802,3963.5,3962.0,0.2192]
[1761295597712,2.52319305,3963.3,3962.1,5.9359035]
[1761295597909,0.2142,3963.9,3962.6,2.52358246]
[1761295598223,2.52316235,3963.3,3962.6,3.411]
[1761295598417,2.52321967,3963.2,3962.6,3.411]
[1761295598798,0.2142,3962.7,3962.6,3.411]
[1761295598992,0.3406,3962.7,3962.6,3.411]
[1761295601038,0.62699516,3962.7,3962.6,3.411]
[1761295601241,0.62699516,3962.7,3961.8,2.52605503]
[1761295601443,0.50059516,3962.7,3961.9,3.407]
[1761295601611,3.02413498,3962.7,3961.9,3.407]
[1761295601807,0.1264,3962.0,3961.9,3.407]
[1761295602002,0.1264,3962.0,3961.9,6.18354149]
[1761295602238,0.1264,3962.0,3961.9,3.407]
[1761295602736,0.1264,3962.0,3961.9,5.93104149]
[1761295603140,0.2142,3962.7,3961.8,0.002]
[1761295603435,2.52391615,3962.1,3961.8,0.002]
[1761295603740,0.4324,3962.6,3961.8,0.002]
[1761295603904,2.52390691,3962.2,3961.8,0.002]
[1761295604305,0.4324,3962.1,3961.8,0.002]
[1761295604807,2.52404149,3961.9,3961.8,0.002]
[1761295605008,3.07207708,3961.9,3961.8,0.002]
[1761295605207,3.50447708,3961.9,3961.8,0.002]
[1761295605408,0.98043559,3961.9,3961.8,0.002]
[1761295606212,2.95644149,3961.9,3961.8,0.002]
[1761295606939,2.95255089,3961.9,3961.8,0.002]
[1761295608243,2.95175089,3961.9,3961.8,0.002]
[1761295608414,4.50695089,3961.9,3961.8,0.002]
[1761295609417,3.07375089,3961.9,3961.8,0.002]
[1761295609742,4.86239248,3961.9,3961.8,0.002]
[1761295612183,6.41759248,3961.9,3961.8,0.002]
[1761295612537,2.52429635,3961.5,3961.4,0.002]
[1761295612733,5.91329635,3961.5,3961.4,0.002]
[1761295613042,15.22969908,3961.5,3961.4,0.002]
[1761295613346,17.1314907,3961.5,3961.4,0.002]
[1761295614348,17.0050907,3961.5,3961.4,0.002]
[1761295615227,16.03599435,3961.5,3958.0,0.2192]
[1761295615431,8.89170273,3961.0,3959.1,0.184]
[1761295615628,2.52561979,3959.5,3959.1,0.184]
[1761295615960,2.52550762,3959.6,3959.1,0.184]
[1761295616161,2.52550762,3959.6,3958.9,2.52595296]
[1761295616336,2.52550762,3959.6,3958.9,2.9670528]
[1761295616545,2.52550762,3959.6,3958.9,0.4411]
[1761295616755,2.52550762,3959.6,3958.9,2.96700714]
[1761295617064,0.4247,3959.5,3958.9,2.52590714]
[1761295617248,2.52550762,3959.6,3959.0,2.52588315]
[1761295617653,2.52550762,3959.6,3958.9,2.52594834]
[1761295617860,2.52550762,3959.6,3959.0,2.52587435]
[1761295618055,2.52550762,3959.6,3958.9,2.5259304]
[1761295618271,2.52550762,3959.6,3958.6,2.7041366]
[1761295618272,2.52550762,3959.6,3958.8,2.52599679]
[1761295618636,2.52550762,3959.6,3958.9,2.52594367]
[1761295619236,0.4247,3959.7,3958.7,0.4411]
[1761295619460,2.52562493,3959.5,3958.8,2.52600982]
[1761295620242,2.52552593,3959.6,3958.8,2.52595949]
[1761295620445,0.74112896,3959.7,3958.9,2.5259097]
[1761295620666,0.31642896,3959.7,3958.6,0.178]
[1761295620962,2.52499747,3960.4,3959.6,0.2016]
[1761295621133,0.2126,3960.5,3959.6,0.2016]
[1761295621134,2.52523418,3960.1,3959.6,0.2016]
[1761295621328,0.25252342,3960.1,3959.6,0.2016]
[1761295621750,2.5251155,3960.3,3959.3,0.2016]
[1761295621952,2.52514113,3960.2,3959.6,0.4656]
[1761295622152,2.52520166,3960.1,3959.6,0.4656]
[1761295622534,2.52513636,3960.2,3959.6,0.4656]
[1761295622734,2.52519782,3960.1,3959.6,0.4656]
[1761295623135,2.5251346,3960.2,3959.6,0.4656]
[1761295623353,2.52500477,3960.4,3959.6,0.4656]
[1761295623354,2.52506933,3960.3,3959.6,0.4656]
[1761295623569,2.52512788,3960.2,3959.6,0.4656]
[1761295624158,2.52519512,3960.1,3959.6,0.4656]
[1761295624459,0.1264,3959.7,3959.6,0.4656]
[1761295624847,0.1264,3959.7,3959.5,2.52556157]
[1761295625035,0.1264,3959.7,3959.6,0.4656]
[1761295626668,0.1264,3959.7,3959.5,2.5255543]
[1761295627044,0.1264,3959.7,3958.0,1.11309788]
[1761295627260,2.52561594,3959.5,3958.6,3.8346]
[1761295627458,0.4262,3959.9,3958.6,0.4656]
[1761295627766,2.52528502,3960.0,3958.4,0.2016]
[1761295627767,0.4262,3959.8,3958.4,0.2016]
[1761295627967,0.4262,3959.8,3958.0,0.2192]
[1761295627968,1.5552,3959.6,3958.0,0.2192]
[1761295628173,2.52590629,3959.0,3958.0,1.5852]
[1761295628343,5.89457141,3959.5,3958.0,0.2192]
[1761295628344,2.52601798,3958.8,3958.0,0.2192]
[1761295628544,2.52632306,3958.4,3957.8,3.369]
[1761295628758,2.52634426,3958.3,3957.8,3.369]
[1761295628964,2.52632105,3958.4,3957.6,2.52677126]
[1761295629158,2.52639173,3958.3,3957.7,3.369]
[1761295629359,2.52629618,3958.4,3957.7,3.369]
[1761295629542,2.52634754,3958.3,3957.7,3.369]
[1761295629737,2.52627604,3958.4,3957.7,3.369]
[1761295630245,2.52614706,3958.6,3957.6,2.99238074]
[1761295630246,2.52621119,3958.5,3957.6,0.4656]
[1761295630445,2.52632073,3958.4,3957.7,5.89471321]
[1761295631079,2.52634538,3958.3,3957.7,3.368]
[1761295631282,2.52634538,3958.3,3958.2,0.002]
[1761295631654,2.95254538,3958.3,3958.2,0.002]
[1761295632196,2.52554538,3958.3,3958.2,0.002]
[1761295632565,3.52906694,3958.3,3958.2,0.002]
[1761295633783,5.08426694,3958.3,3958.2,0.002]
[1761295636160,0.2287,3957.9,3956.0,0.2016]
[1761295636383,2.52700544,3957.3,3956.0,2.72939856]
[1761295636712,2.52665622,3957.8,3956.1,0.27293986]
[1761295636913,0.2287,3958.2,3956.1,0.73853986]
[1761295637079,0.2287,3958.2,3956.2,0.50688]
[1761295637397,0.1264,3956.8,3956.7,2.52735865]
[1761295637601,0.1264,3956.8,3956.7,5.88735865]
[1761295637761,0.1264,3956.8,3956.7,6.35295865]
[1761295638272,0.1264,3956.8,3956.7,3.8256]
[1761295638481,0.1264,3956.8,3956.7,0.4656]
[1761295638683,0.1264,3956.8,3956.7,2.99295865]
[1761295639085,0.4252,3957.9,3956.7,2.99290195]
[1761295639390,0.1264,3956.8,3956.7,2.99290195]
[1761295640011,0.1264,3956.8,3956.4,3.359]
[1761295640205,0.4252,3957.6,3956.5,2.52747486]
[1761295640407,0.4252,3957.6,3956.8,2.52724376]
[1761295640408,2.52684775,3957.5,3956.8,2.52724376]
[1761295640911,0.1264,3956.9,3956.8,2.52724376]
[1761295641985,0.1264,3956.9,3956.7,2.52734107]
[1761295642193,0.4252,3957.8,3956.8,2.52724478]
[1761295642388,3.71477902,3957.8,3956.9,2.52717243]
[1761295642588,2.52672559,3957.7,3956.9,2.52717243]
[1761295642788,0.1264,3957.0,3956.9,2.52717243]
[1761295643031,0.1264,3957.0,3956.9,2.99277243]
[1761295643231,2.52674166,3957.7,3957.0,2.5271668]
[1761295643541,0.1264,3957.1,3957.0,2.99276704]
[1761295643754,8.89170273,3959.2,3957.0,2.99276704]
[1761295643755,10.3,3959.7,3957.2,5.05407864]
[1761295643890,6.421,3961.4,3960.4,0.2016]
[1761295643891,0.001,3961.4,3960.4,0.2016]
[1761295644090,0.001,3961.4,3960.5,3.411]
[1761295644523,0.001,3961.4,3960.5,5.93593082]
[1761295644732,0.001,3961.4,3960.6,2.52484704]
[1761295644884,2.52443171,3961.3,3960.4,0.2016]
[1761295645088,0.25254317,3961.2,3960.5,3.409]
[1761295645726,0.67784317,3961.2,3960.4,3.408]
[1761295646317,0.67784317,3961.2,3960.4,5.93298804]
[1761295646726,0.67784317,3961.2,3960.4,2.52498804]
[1761295647038,0.67784317,3961.2,3960.5,2.52492989]
[1761295647203,0.001,3961.4,3960.8,2.52472529]
[1761295649227,0.001,3961.4,3960.7,2.52479595]
[1761295649919,0.001,3961.4,3960.7,2.52479789]
[1761295650115,0.001,3961.2,3960.7,2.52479789]
[1761295650635,0.4237,3961.2,3960.3,3.407]
[1761295650834,0.29491755,3961.1,3960.4,2.52499644]
[1761295651235,0.29491755,3961.1,3960.5,2.52488995]
[1761295652243,0.001,3961.2,3960.8,2.52469234]
[1761295652427,0.001,3961.2,3960.3,3.407]
[1761295652428,0.001,3961.2,3960.6,0.4445]
[1761295652631,0.001,3961.2,3961.1,2.71005126]
[1761295653340,0.001,3961.2,3961.1,0.1855]
[1761295653548,0.001,3961.2,3961.1,3.24006094]
[1761295653749,0.001,3961.2,3960.8,2.52473929]
[1761295653950,0.001,3961.2,3960.9,3.396]
[1761295654112,0.4434,3961.2,3960.8,3.397]
[1761295654316,0.4434,3961.2,3960.7,3.397]
[1761295654744,0.19996,3961.1,3960.7,3.397]
[1761295654915,2.52467766,3961.0,3960.2,2.52508212]
[1761295655121,2.52467766,3961.0,3960.0,2.96974615]
[1761295655122,2.52467766,3961.0,3960.0,0.4445]
[1761295655326,0.2166,3960.9,3960.2,5.92007972]
[1761295655531,0.80750902,3960.9,3960.2,5.92007972]
[1761295655851,2.52474247,3960.8,3960.2,3.395]
[1761295656050,2.52474247,3960.8,3959.6,0.1855]
[1761295656051,0.4401,3960.8,3959.6,0.1855]
[1761295656347,0.2166,3960.9,3959.9,3.394]
[1761295656551,4.08070483,3961.2,3960.1,2.52518875]
[1761295656752,4.08070483,3961.2,3960.0,0.7839]
[1761295656753,2.52462063,3961.0,3960.0,0.7839]
[1761295656958,2.52456788,3961.1,3960.1,0.2016]
[1761295657123,0.001,3961.2,3960.1,0.2016]
[1761295657458,2.52548934,3961.2,3960.2,2.5251078]
[1761295657626,2.52548934,3961.2,3960.2,2.52510826]
[1761295657627,2.52468628,3960.9,3960.2,2.52510826]
[1761295657827,2.94838934,3961.2,3960.0,0.4445]
[1761295657828,0.4229,3961.1,3960.0,3.394]
[1761295658026,2.5248861,3960.6,3960.0,3.395]
[1761295658229,2.52549052,3961.2,3960.0,3.395]
[1761295658230,0.001,3961.2,3960.0,3.395]
[1761295658428,0.001,3961.2,3960.3,2.52501042]
[1761295658734,2.52455126,3961.1,3960.3,2.52501042]
[1761295658931,2.52462846,3961.0,3960.3,2.52501042]
[1761295659248,2.52468327,3960.9,3960.2,2.52511372]
[1761295659444,2.94751297,3961.1,3960.1,2.72674245]
[1761295659754,2.52480807,3960.7,3960.1,0.2016]
[1761295660059,2.81947063,3961.0,3960.1,0.2016]
[1761295660260,2.5247746,3960.8,3960.1,0.2016]
[1761295660857,2.5249799,3960.5,3959.7,2.52538727]
[1761295661067,0.29710799,3960.4,3959.3,0.1855]
[1761295661270,0.29710799,3960.4,3959.7,2.525415]
[1761295661767,2.82211783,3960.4,3959.6,2.52548617]
[1761295662074,2.82211783,3960.4,3959.6,3.389]
[1761295662075,2.97121101,3960.3,3959.6,3.389]
[1761295662269,3.29804291,3960.3,3959.6,3.389]
[1761295662774,0.3268319,3960.3,3959.0,0.2016]
[1761295662974,0.2296,3959.7,3959.1,3.388]
[1761295663174,0.2296,3959.7,3958.6,0.6461]
[1761295663375,0.4439,3959.6,3958.6,0.2016]
[1761295663573,2.52575691,3959.3,3958.6,0.79]
[1761295663869,0.1264,3958.7,3958.6,3.3161456]
[1761295665365,0.1264,3958.7,3958.6,0.79]
[1761295665541,0.1264,3958.7,3957.1,0.2525]
[1761295665542,0.1264,3958.7,3958.0,0.4445]
[1761295665744,2.68996951,3958.8,3958.2,3.383]
[1761295665942,2.52608606,3958.7,3958.2,3.383]
[1761295666173,0.1264,3958.3,3958.2,3.383]
[1761295666560,0.1264,3958.3,3957.6,0.4445]
[1761295666763,0.1264,3958.3,3958.0,3.382]
[1761295666964,2.5262208,3958.5,3958.0,3.382]
[1761295667163,0.1264,3958.1,3957.3,2.52697546]
[1761295667480,0.1639,3958.8,3956.6,0.1264]
[1761295667481,2.52633706,3958.3,3956.6,0.1264]
[1761295667786,2.52658782,3958.0,3957.1,5.90810318]
[1761295667946,2.52661832,3957.9,3957.2,3.38]
[1761295668278,0.4411,3958.3,3957.2,3.38]
[1761295668279,0.1264,3957.3,3957.2,2.52703685]
[1761295668578,0.1264,3957.3,3957.2,5.90703932]
[1761295669868,0.1264,3957.3,3957.2,2.52703932]
[1761295670070,0.1264,3957.3,3957.1,2.52709641]
[1761295670275,2.67341074,3957.9,3957.1,2.52909641]
[1761295670579,0.1264,3957.2,3957.1,0.002]
[1761295670893,0.1264,3957.2,3957.1,5.90710318]
[1761295672374,1.7191,3958.8,3958.2,2.52639613]
[1761295672684,0.1264,3958.3,3958.2,2.52639613]
[1761295673382,0.1264,3958.3,3958.2,2.97089613]
[1761295673583,2.52574707,3959.3,3958.6,2.52613572]
[1761295673773,2.96817651,3959.5,3958.3,2.52629422]
[1761295673774,0.54939236,3959.2,3958.5,3.373]
[1761295674085,1.5552,3959.1,3958.5,5.89916282]
[1761295676395,0.4426,3959.4,3958.1,0.2178]
[1761295676665,1.5552,3959.1,3958.5,2.52620306]
[1761295676966,1.5552,3959.1,3958.6,3.369]
[1761295677393,2.52583897,3959.1,3958.6,3.369]
[1761295677594,0.4426,3959.0,3958.6,3.369]
[1761295677767,2.52605209,3958.8,3958.5,3.367]
[1761295678198,2.96595209,3958.8,3958.5,3.367]
[1761295678770,2.52601798,3958.8,3958.5,3.367]
[1761295679096,3.04815967,3958.8,3958.5,3.367]
[1761295679283,2.5261614,3958.6,3958.4,3.364]
[1761295679462,2.5261614,3958.6,3958.3,3.364]
[1761295679665,0.52214169,3958.8,3958.0,3.363]
[1761295679891,2.52620942,3958.5,3958.0,3.363]
[1761295680094,2.52628245,3958.4,3958.0,3.363]
[1761295680299,2.52548245,3958.4,3958.0,3.363]
[1761295680488,2.52621232,3958.5,3958.0,3.363]
[1761295680689,2.52632201,3958.4,3957.9,3.362]
[1761295681000,2.52632057,3958.4,3957.9,3.362]
[1761295681197,2.52623333,3958.5,3957.9,3.8058]
[1761295681410,2.52634311,3958.3,3957.9,3.362]
[1761295681702,0.9451262,3958.5,3957.9,3.362]
[1761295681887,0.4399,3958.5,3957.9,3.362]
[1761295682095,2.52634013,3958.3,3957.9,3.362]
[1761295682397,2.52629798,3958.4,3957.9,3.362]
[1761295682568,2.52634349,3958.3,3957.9,3.362]
[1761295683000,0.4399,3958.8,3957.9,3.362]
[1761295683300,2.52627984,3958.4,3957.9,3.362]
[1761295683504,0.46904957,3958.7,3957.9,3.362]
[1761295683706,0.1264,3958.0,3957.9,3.362]
[1761295684802,0.1695,3958.9,3958.2,2.52635833]
[1761295684971,0.1695,3958.9,3958.3,2.52628282]
[1761295685300,2.52602078,3958.8,3958.3,3.357]
[1761295685502,2.52612063,3958.7,3958.3,3.357]
[1761295685671,0.72166212,3958.7,3957.8,0.2178]
[1761295685879,2.52622464,3958.5,3957.9,3.357]
[1761295686382,2.96612464,3958.5,3957.9,3.357]
[1761295686577,2.52621783,3958.5,3957.3,0.4438]
[1761295686798,2.52621783,3958.5,3957.6,2.52677293]
[1761295686799,2.52633807,3958.3,3957.6,2.52677293]
[1761295686976,2.52633807,3958.3,3957.4,3.356]
[1761295687178,2.52633807,3958.3,3957.6,2.52678364]
[1761295687496,2.52646957,3958.1,3957.6,3.354]
[1761295688276,2.96636957,3958.1,3957.4,2.52686562]
[1761295688509,2.96636957,3958.1,3957.5,3.353]
[1761295689799,0.4399,3958.1,3957.5,5.87983735]
[1761295690011,2.52637648,3958.3,3957.5,3.353]
[1761295690307,2.52646476,3958.1,3957.5,3.353]
[1761295690474,2.52642343,3958.2,3957.5,5.87983081]
[1761295691279,2.52646925,3958.1,3957.5,3.353]
[1761295691911,3.51548965,3958.3,3957.5,3.353]
[1761295691912,2.96642854,3958.0,3957.5,3.352]
[1761295692089,0.4399,3958.0,3957.5,3.352]
[1761295692290,0.5803,3957.9,3957.4,5.87588546]
[1761295692593,3.41761303,3957.9,3957.4,0.002]
[1761295692793,2.52676308,3957.7,3957.4,0.002]
[1761295693020,2.87726107,3957.8,3957.4,0.002]
[1761295693788,1.9058,3957.8,3957.4,0.002]
[1761295694013,1.5552,3957.8,3957.4,0.002]
[1761295694388,2.52665986,3957.8,3957.4,0.002]
[1761295694594,3.21902426,3957.8,3957.4,0.002]
[1761295694915,0.1264,3957.5,3957.4,0.002]
[1761295697913,3.00384775,3957.5,3957.4,0.002]
[1761295698295,4.55904775,3957.5,3957.4,0.002]
[1761295703620,4.20844775,3957.5,3957.4,0.002]
[1761295703829,5.60054256,3957.5,3957.4,0.002]
[1761295704116,5.59974256,3957.5,3957.4,0.002]
[1761295705290,5.12354256,3957.5,3957.4,0.002]
[1761295705503,5.47414256,3957.5,3957.4,0.002]
[1761295715450,5.60054256,3957.5,3957.4,0.002]
[1761295715750,6.10742256,3957.5,3957.4,0.002]
[1761295716255,6.78730236,3957.5,3957.4,0.002]
[1761295716855,2.52684775,3957.5,3957.4,0.002]
[1761295717387,5.84362103,3957.9,3957.4,0.4399]
[1761295717663,0.5492431,3958.3,3957.5,2.96474775]
[1761295717664,2.52633706,3958.3,3957.5,2.96474775]
[1761295717819,2.52727624,3958.4,3957.6,2.96462156]
[1761295717820,0.001,3958.4,3957.6,2.96462156]
[1761295718020,0.001,3958.4,3957.4,0.02726911]
[1761295718021,0.001,3958.4,3957.7,0.73708907]
[1761295718223,0.001,3958.4,3958.3,0.2178]
[1761295718419,0.001,3958.4,3958.3,2.74413706]
[1761295718728,0.001,3958.4,3958.3,3.18203706]
[1761295719650,0.001,3958.4,3958.3,2.74413706]
[1761295719821,0.001,3958.4,3958.3,3.18203706]
[1761295720826,0.001,3958.4,3958.3,2.52633706]
[1761295721021,0.001,3958.4,3958.3,2.96423706]
[1761295721238,0.001,3958.4,3958.3,0.4379]
[1761295721468,0.001,3958.4,3958.0,0.2178]
[1761295721661,0.001,3958.4,3958.0,5.84152612]
[1761295721864,0.001,3958.4,3958.0,6.27942612]
[1761295722274,0.001,3958.4,3958.0,3.7529]
[1761295722484,0.001,3958.4,3957.8,0.2178]
[1761295722702,0.29780407,3958.4,3957.4,0.002]
[1761295722982,0.4418,3958.4,3957.5,3.314]
[1761295723151,0.001,3958.4,3957.5,3.314]
[1761295723351,2.52639324,3958.3,3957.5,6.27874461]
[1761295723553,2.52646832,3958.1,3957.5,3.7519]
[1761295723879,3.03186373,3958.1,3957.4,0.002]
[1761295724175,4.08190836,3957.8,3957.4,0.002]
[1761295724546,2.52672476,3957.7,3957.4,0.002]
[1761295725688,2.52684775,3957.5,3957.4,0.002]
[1761295725892,4.08204775,3957.5,3957.4,0.002]
[1761295726205,1.5552,3957.5,3957.4,0.002]